[Event "EYCC 2017"]
[Site "Mamaia"]
[Date "2017.09.05"]
[Round "1"]
[White "Ter-Avetisjana, Agnesa Stepania"]
[Black "Gasimova, Samra"]
[Result "0-1"]
[ECO "B34"]
[WhiteElo "1248"]
[BlackElo "1534"]
[Annotator "NA RC"]
[PlyCount "106"]
[EventDate "2017.??.??"]
[EventType "swiss"]
[EventCountry "ROU"]
[SourceTitle "playchess.com"]
[Source "ChessBase"]
[SourceQuality "1"]
[TimeControl "40/5400+30:1800+30"]

1. e4 {[%emt 0:00:00]} c5 {[%emt 0:00:12]} 2. Nf3 {[%emt 0:00:00]} Nc6 {[%emt 0:00:05]} 3. Nc3 {[%emt 0:01:12]} g6 {[%emt 0:00:55]} 4. d4 {[%emt 0:01:45]} cxd4 {[%emt 0:00:09]} 5. Nxd4 {[%emt 0:00:04]} Bg7 {[%emt 0:00:51]} 6. Nxc6 {[%emt 0:03:07]} bxc6 {[%emt 0:00:22]} 7. Qf3 {[%emt 0:04:15]} e6 {[%emt 0:10:02]} 8. Be2 {[%emt 0:04:22]} Ne7 {[%emt 0:02:48]} 9. O-O {[%emt 0:03:19]} Rb8 {[%emt 0:00:56]} 10. Qg3 {[%emt 0:01:00]} Rb6 {[%emt 0:08:28]} 11. a3 {[%emt 0:12:29]} Ba6 {[%emt 0:11:01]} 12. Bxa6 {[%emt 0:04:28]} Rxa6 {[%emt 0:00:05]} 13. Ne2 {[%emt 0:19:55]} Rb6 {[%emt 0:00:27]} 14. c3 {[%emt 0:00:30]} O-O {[%emt 0:00:39]} 15. f4 {[%emt 0:03:36]} d5 {[%emt 0:01:55]} 16. e5 {[%emt 0:01:24]} Nf5 {[%emt 0:01:10]} 17. Qf2 {[%emt 0:00:44]} f6 {[%emt 0:02:27]} 18. Nd4 {[%emt 0:02:46]} Nxd4 {[%emt 0:01:54]} 19. cxd4 {[%emt 0:00:51]} fxe5 {[%emt 0:01:27]} 20. dxe5 {[%emt 0:00:06]} Bxe5 {[%emt 0:07:56]} 21. Qe2 {[%emt 0:01:03]} Bd4+ {[%emt 0:01:53]} 22. Kh1 {[%emt 0:00:30]} Qf6 {[%emt 0:02:00]} 23. Ra2 {[%emt 0:01:17]} e5 {[%emt 0:00:31]} 24. g3 {[%emt 0:01:35]} Qf5 {[%emt 0:01:24]} 25. Re1 {[%emt 0:02:28]} exf4 {[%emt 0:03:59]} 26. gxf4 {[%emt 0:00:25]} Rb3 {[%emt 0:05:14]} 27. Qd1 {[%emt 0:02:18]} Qd3 {[%emt 0:00:36]} 28. Qxd3 {[%emt 0:00:23]} Rxd3 {[%emt 0:00:04]} 29. b4 {[%emt 0:00:42]} Bc3 {[%emt 0:00:38]} 30. Rf1 {[%emt 0:00:40]} Re8 {[%emt 0:00:12]} 31. Kg2 {[%emt 0:00:54]} d4 {[%emt 0:00:55]} 32. Kf2 {[%emt 0:00:51]} Rf8 {[%emt 0:01:42]} 33. Kg2 {[%emt 0:01:15]} Rf5 {[%emt 0:03:06]} 34. Rf3 {[%emt 0:01:26]} Rd1 {[%emt 0:01:00]} 35. Rf1 {[%emt 0:00:08]} Rxf1 {[%emt 0:00:16]} 36. Kxf1 {[%emt 0:00:08]} g5 {[%emt 0:00:18]} 37. Rf2 {[%emt 0:00:17]} d3 {[%emt 0:00:34]} 38. h3 {[%emt 0:01:03]} gxf4 {[%emt 0:00:16]} 39. Rg2+ {[%emt 0:00:15]} Kf7 {[%emt 0:00:16]} 40. Kf2 {[%emt 0:00:00]} d2 {[%emt 0:00:12]} 41. Bxd2 {[%emt 0:00:25]} Bxd2 {[%emt 0:00:07]} 42. Kf3 {[%emt 0:00:11]} Be3 {[%emt 0:00:16]} 43. Rc2 {[%emt 0:00:26]} Rf6 {[%emt 0:00:47]} 44. Rc4 {[%emt 0:00:32]} Rd6 {[%emt 0:00:46]} 45. a4 {[%emt 0:00:55]} Ke6 {[%emt 0:01:18]} 46. Re4+ {[%emt 0:00:12]} Kf6 {[%emt 0:00:23]} 47. Re8 {[%emt 0:00:17]} Bd2 {[%emt 0:01:08]} 48. Rh8 {[%emt 0:00:44]} Rd3+ {[%emt 0:00:22]} 49. Ke4 {[%emt 0:00:24]} Rxh3 {[%emt 0:00:37]} 50. Ra8 {[%emt 0:00:10]} f3 {[%emt 0:00:48]} 51. Rf8+ {[%emt 0:00:17]} Ke7 {[%emt 0:00:09]} 52. Rxf3 {[%emt 0:00:04]} Rxf3 {[%emt 0:00:05]} 53. Kxf3 {[%emt 0:00:05]} Bxb4 0-1

[Event "EYCC 2017"]
[Site "Mamaia"]
[Date "2017.09.05"]
[Round "1"]
[White "Goginyan, Tamar"]
[Black "Veremiuk, Veronika"]
[Result "0-1"]
[ECO "E18"]
[WhiteElo "1177"]
[BlackElo "1559"]
[Annotator "NA RC"]
[PlyCount "68"]
[EventDate "2017.??.??"]
[EventType "swiss"]
[EventCountry "ROU"]
[SourceTitle "playchess.com"]
[Source "ChessBase"]
[SourceQuality "1"]
[TimeControl "40/5400+30:1800+30"]

1. d4 {[%emt 0:00:00]} Nf6 {[%emt 0:00:41]} 2. Nf3 {[%emt 0:00:00]} e6 {[%emt 0:00:51]} 3. g3 {[%emt 0:00:00]} b6 {[%emt 0:00:35]} 4. Bg2 {[%emt 0:00:00]} Bb7 {[%emt 0:00:08]} 5. O-O {[%emt 0:00:07]} Be7 {[%emt 0:02:44]} 6. c4 {[%emt 0:00:40]} O-O {[%emt 0:01:56]} 7. Nc3 {[%emt 0:00:06]} d5 {[%emt 0:09:36]} 8. Ne5 {[%emt 0:03:26]} c6 {[%emt 0:05:38]} 9. Bf4 {[%emt 0:15:04]} Nbd7 {[%emt 0:07:37]} 10. Nxd7 {[%emt 0:10:07]} Qxd7 {[%emt 0:01:09]} 11. cxd5 {[%emt 0:02:09]} cxd5 {[%emt 0:05:19]} 12. Rc1 {[%emt 0:02:43]} Rac8 {[%emt 0:10:31]} 13. e3 {[%emt 0:08:43]} Ba6 {[%emt 0:04:53]} 14. Re1 {[%emt 0:01:51]} Bb4 {[%emt 0:01:54]} 15. Qb3 {[%emt 0:08:25]} Bxc3 {[%emt 0:02:59]} 16. Rxc3 {[%emt 0:03:54]} Rxc3 {[%emt 0:04:01]} 17. Qxc3 {[%emt 0:00:38]} Rc8 {[%emt 0:02:33]} 18. Qa3 {[%emt 0:03:34]} Bb5 {[%emt 0:05:59]} 19. b3 {[%emt 0:12:07]} Rc2 {[%emt 0:06:38]} 20. Rc1 {[%emt 0:00:46]} Qc6 {[%emt 0:05:27]} 21. Rxc2 {[%emt 0:02:45]} Qxc2 {[%emt 0:00:18]} 22. h3 {[%emt 0:00:10]} a6 {[%emt 0:05:04]} 23. Be5 {[%emt 0:10:15]} Nd7 {[%emt 0:02:36]} 24. Qe7 {[%emt 0:00:16]} Qc8 {[%emt 0:01:16]} 25. Bf4 {[%emt 0:02:42]} h6 {[%emt 0:01:23]} 26. a4 {[%emt 0:02:55]} Bd3 {[%emt 0:01:53]} 27. Qb4 {[%emt 0:03:54]} Qc1+ {[%emt 0:03:27]} 28. Kh2 {[%emt 0:00:09]} Qc2 {[%emt 0:01:04]} 29. Kg1 {[%emt 0:01:23]} Qd1+ {[%emt 0:01:05]} 30. Kh2 {[%emt 0:00:01]} Qe2 {[%emt 0:00:24]} 31. Kg1 {[%emt 0:00:12]} Nf6 {[%emt 0:00:38]} 32. Qc3 {[%emt 0:04:18]} Ne4 {[%emt 0:00:56]} 33. Bxe4 {[%emt 0:00:12]} Bxe4 {[%emt 0:00:07]} 34. Qc1 {[%emt 0:00:17]} Qf3 {[%emt 0:00:19]} 0-1

[Event "EYCC 2017"]
[Site "Mamaia"]
[Date "2017.09.05"]
[Round "1"]
[White "Jouani, Zakharia"]
[Black "Shilnikov, Igor S"]
[Result "1-0"]
[ECO "A48"]
[WhiteElo "1158"]
[BlackElo "1764"]
[Annotator "NA RC"]
[PlyCount "33"]
[EventDate "2017.??.??"]
[EventType "swiss"]
[EventCountry "ROU"]
[SourceTitle "playchess.com"]
[Source "ChessBase"]
[SourceQuality "1"]
[TimeControl "40/5400+30:1800+30"]

1. d4 Nf6 2. Bf4 g6 3. Nf3 d6 4. e3 Bg7 5. Be2 b6 6. O-O Bb7 7. h3 Nbd7 8. c4 O-O 9. Nc3 Re8 10. b4 e5 11. Bh2 c5 12. bxc5 bxc5 13. Rb1 Bc8 14. dxe5 Nxe5 15. Nxe5 Nh5 16. Nc6 Qc7 17. Nb5 1-0

[Event "EYCC 2017"]
[Site "Mamaia"]
[Date "2017.09.05"]
[Round "1"]
[White "Nica, Tudor-Stefan"]
[Black "Ljepic, Andrej"]
[Result "1-0"]
[ECO "C02"]
[WhiteElo "1107"]
[BlackElo "1616"]
[Annotator "NA RC"]
[PlyCount "31"]
[EventDate "2017.??.??"]
[EventType "swiss"]
[EventCountry "ROU"]
[SourceTitle "playchess.com"]
[Source "ChessBase"]
[SourceQuality "1"]
[TimeControl "40/5400+30:1800+30"]

1. e4 {[%emt 0:00:00]} e6 {[%emt 0:00:00]} 2. d4 d5 3. e5 {[%emt 0:00:30]} c5 {[%emt 0:00:32]} 4. c3 {[%emt 0:00:13]} Nc6 {[%emt 0:00:02]} 5. Nf3 {[%emt 0:00:19]} Qb6 {[%emt 0:00:18]} 6. a3 {[%emt 0:01:01]} Nh6 {[%emt 0:04:12]} 7. b4 {[%emt 0:03:18]} cxd4 {[%emt 0:01:01]} 8. cxd4 {[%emt 0:00:25]} Nf5 {[%emt 0:00:08]} 9. Be3 {[%emt 0:01:07]} Qc7 {[%emt 0:01:31]} 10. Nc3 {[%emt 0:01:44]} a6 {[%emt 0:00:12]} 11. Rc1 {[%emt 0:00:57]} Rb8 {[%emt 0:01:40]} 12. Bd3 {[%emt 0:00:51]} Nfe7 {[%emt 0:01:54]} 13. O-O {[%emt 0:01:01]} g6 {[%emt 0:00:11]} 14. b5 {[%emt 0:00:23]} Na5 {[%emt 0:02:02]} 15. Nxd5 {[%emt 0:00:46]} Qd8 {[%emt 0:05:12]} 16. Nf6# {[%emt 0:00:11] Ng8} 1-0

[Event "EYCC 2017"]
[Site "Mamaia"]
[Date "2017.09.05"]
[Round "1"]
[White "Misiuk, Martynas"]
[Black "Vetokhin, Savva"]
[Result "0-1"]
[ECO "B13"]
[WhiteElo "1052"]
[BlackElo "1757"]
[Annotator "NA RC"]
[PlyCount "60"]
[EventDate "2017.??.??"]
[EventType "swiss"]
[EventCountry "ROU"]
[SourceTitle "playchess.com"]
[Source "ChessBase"]
[SourceQuality "1"]
[TimeControl "40/5400+30:1800+30"]

1. e4 {[%emt 0:00:00]} c6 {[%emt 0:00:10]} 2. d4 {[%emt 0:00:17]} d5 {[%emt 0:00:09]} 3. exd5 {[%emt 0:00:53]} cxd5 {[%emt 0:00:09]} 4. Bd3 {[%emt 0:00:32]} Nc6 {[%emt 0:00:24]} 5. c3 {[%emt 0:00:31]} Qc7 {[%emt 0:00:25]} 6. h3 {[%emt 0:00:49]} Nf6 {[%emt 0:00:59]} 7. Nf3 {[%emt 0:00:42]} g6 {[%emt 0:00:43]} 8. O-O {[%emt 0:01:04]} Bg7 {[%emt 0:00:25]} 9. Nbd2 {[%emt 0:02:02]} O-O {[%emt 0:00:57]} 10. Nb3 {[%emt 0:00:13]} Nh5 {[%emt 0:01:17]} 11. Bg5 {[%emt 0:00:58]} Nf4 {[%emt 0:01:00]} 12. Bxf4 {[%emt 0:00:22]} Qxf4 {[%emt 0:00:07]} 13. Re1 {[%emt 0:00:15]} Re8 {[%emt 0:07:54]} 14. Nfd2 {[%emt 0:04:07]} Bf5 {[%emt 0:04:31]} 15. Nf3 {[%emt 0:01:26]} Bxd3 {[%emt 0:07:33]} 16. Qxd3 {[%emt 0:00:26]} Rad8 {[%emt 0:01:31]} 17. Qb5 {[%emt 0:02:16]} Qc7 {[%emt 0:00:40]} 18. Ng5 {[%emt 0:02:26]} h6 {[%emt 0:02:44]} 19. Nf3 {[%emt 0:02:17]} e6 {[%emt 0:09:43]} 20. Nc5 {[%emt 0:02:52]} b6 {[%emt 0:01:28]} 21. Na6 {[%emt 0:01:17]} Qd6 {[%emt 0:01:27]} 22. Nb4 {[%emt 0:02:09]} Nxb4 {[%emt 0:01:12]} 23. cxb4 {[%emt 0:00:18]} a6 {[%emt 0:09:08]} 24. Qa4 {[%emt 0:00:58]} b5 {[%emt 0:04:05]} 25. Qb3 {[%emt 0:00:35]} Rc8 {[%emt 0:00:06]} 26. Rac1 {[%emt 0:00:29]} Rc4 {[%emt 0:01:03]} 27. Rxc4 {[%emt 0:01:56]} dxc4 {[%emt 0:00:03]} 28. Qa3 {[%emt 0:00:42]} Ra8 {[%emt 0:01:23]} 29. Qc3 {[%emt 0:01:07]} Rd8 {[%emt 0:00:35]} 30. Rd1 {[%emt 0:01:54]} e5 {[%emt 0:00:27]} 0-1